[Event "*** Titled Tuesday Blitz"]
[Site "Chess.com"]
[Date "2020.03.03"]
[Round "2"]
[White "GM_dmitrij"]
[Black "TST2014"]
[Result "1-0"]
[WhiteElo "2827"]
[BlackElo "2590"]
[TimeControl "180+1"]
[EndTime "13:19:44 PST"]
[Termination "GM_dmitrij won by checkmate"]

1. e4 {[%clk 0:03:00.9]} 1... c5 {[%clk 0:02:59.3]} 2. Nf3 {[%clk 0:03:00.4]}
2... Nc6 {[%clk 0:02:58.6]} 3. Bb5 {[%clk 0:03:00.8]} 3... g6 {[%clk 0:02:58.3]}
4. O-O {[%clk 0:03:00.8]} 4... Bg7 {[%clk 0:02:58.1]} 5. c3 {[%clk 0:03:00.7]}
5... Nf6 {[%clk 0:02:57.4]} 6. Re1 {[%clk 0:03:00.7]} 6... O-O {[%clk
0:02:56.4]} 7. d4 {[%clk 0:03:00.1]} 7... d5 {[%clk 0:02:56.4]} 8. e5 {[%clk
0:03:00.6]} 8... Ne4 {[%clk 0:02:56.1]} 9. Be3 {[%clk 0:03:00.8]} 9... cxd4
{[%clk 0:02:46.8]} 10. cxd4 {[%clk 0:03:00.5]} 10... Qb6 {[%clk 0:02:46.4]} 11.
Bxc6 {[%clk 0:03:00.9]} 11... bxc6 {[%clk 0:02:44.9]} 12. Qc1 {[%clk 0:03:01.1]}
12... Bg4 {[%clk 0:02:37.3]} 13. Nfd2 {[%clk 0:03:01]} 13... Nxd2 {[%clk
0:02:35.6]} 14. Qxd2 {[%clk 0:03:01.9]} 14... Rab8 {[%clk 0:02:34.1]} 15. b3
{[%clk 0:03:01.7]} 15... Qa6 {[%clk 0:02:16.9]} 16. Nc3 {[%clk 0:03:01.6]} 16...
e6 {[%clk 0:02:10]} 17. Na4 {[%clk 0:02:53.6]} 17... Qb5 {[%clk 0:02:04.9]} 18.
f3 {[%clk 0:02:38.5]} 18... Bf5 {[%clk 0:01:37.4]} 19. g4 {[%clk 0:02:38.1]}
19... Bd3 {[%clk 0:01:34.3]} 20. Rad1 {[%clk 0:02:18]} 20... Bc4 {[%clk
0:01:23.1]} 21. Nc5 {[%clk 0:02:09.5]} 21... Bxb3 {[%clk 0:01:18.1]} 22. axb3
{[%clk 0:02:10.4]} 22... Rfd8 {[%clk 0:01:14.5]} 23. Ra1 {[%clk 0:02:09.2]}
23... Bf8 {[%clk 0:01:13.5]} 24. Ra5 {[%clk 0:01:47.9]} 24... Qb4 {[%clk
0:01:10.5]} 25. Qxb4 {[%clk 0:01:46.9]} 25... Rxb4 {[%clk 0:01:11]} 26. Rxa7
{[%clk 0:01:24.5]} 26... Bxc5 {[%clk 0:01:05.4]} 27. dxc5 {[%clk 0:01:25.4]}
27... Rxb3 {[%clk 0:01:05.8]} 28. Rc7 {[%clk 0:01:17.6]} 28... d4 {[%clk
0:01:00.3]} 29. Bg5 {[%clk 0:01:17.5]} 29... Rdb8 {[%clk 0:00:47.1]} 30. Rxc6
{[%clk 0:01:16.4]} 30... Rxf3 {[%clk 0:00:46.8]} 31. Rd6 {[%clk 0:01:07.9]}
31... Rc3 {[%clk 0:00:32.7]} 32. c6 {[%clk 0:01:06]} 32... Rc8 {[%clk
0:00:28.7]} 33. Rd1 {[%clk 0:01:02.8]} 33... h5 {[%clk 0:00:15.2]} 34. R1xd4
{[%clk 0:00:55.9]} 34... R3xc6 {[%clk 0:00:11.3]} 35. Rxc6 {[%clk 0:00:55.3]}
35... Rxc6 {[%clk 0:00:12.2]} 36. Rd8+ {[%clk 0:00:55.8]} 36... Kh7 {[%clk
0:00:12.1]} 37. Bf6 {[%clk 0:00:55.8]} 37... g5 {[%clk 0:00:11.6]} 38. gxh5
{[%clk 0:00:56.3]} 38... Rc1+ {[%clk 0:00:08.3]} 39. Kf2 {[%clk 0:00:56.4]}
39... Rc2+ {[%clk 0:00:08.6]} 40. Ke3 {[%clk 0:00:57.1]} 40... Rc3+ {[%clk
0:00:08.9]} 41. Kd2 {[%clk 0:00:57.5]} 41... Rc8 {[%clk 0:00:06.9]} 42. Rxc8
{[%clk 0:00:57]} 42... g4 {[%clk 0:00:07]} 43. Rh8# {[%clk 0:00:57.9]} 1-0

[Event "*** Titled Tuesday Blitz"]
[Site "Chess.com"]
[Date "2020.03.03"]
[Round "2"]
[White "MusicCityMaster"]
[Black "francyIM"]
[Result "0-1"]
[WhiteElo "2384"]
[BlackElo "2705"]
[TimeControl "180+1"]
[EndTime "13:19:45 PST"]
[Termination "francyIM won by resignation"]

1. d4 {[%clk 0:02:23.5]} 1... Nf6 {[%clk 0:02:57.1]} 2. Bf4 {[%clk 0:02:23.8]}
2... d5 {[%clk 0:02:53.3]} 3. Nc3 {[%clk 0:02:24.3]} 3... a6 {[%clk 0:02:51.6]}
4. e3 {[%clk 0:02:22.9]} 4... b5 {[%clk 0:02:51.1]} 5. Bd3 {[%clk 0:02:18]} 5...
Bb7 {[%clk 0:02:51.1]} 6. Nf3 {[%clk 0:02:15.6]} 6... e6 {[%clk 0:02:51]} 7. Ne2
{[%clk 0:02:13.2]} 7... c5 {[%clk 0:02:50]} 8. c3 {[%clk 0:02:13.7]} 8... Bd6
{[%clk 0:02:49.4]} 9. O-O {[%clk 0:02:09.2]} 9... O-O {[%clk 0:02:47.9]} 10. a3
{[%clk 0:02:00.1]} 10... Nc6 {[%clk 0:02:47.1]} 11. b4 {[%clk 0:01:55.6]} 11...
c4 {[%clk 0:02:42.3]} 12. Bc2 {[%clk 0:01:55.2]} 12... Be7 {[%clk 0:02:41.5]}
13. Ng3 {[%clk 0:01:52.1]} 13... h6 {[%clk 0:02:36.5]} 14. e4 {[%clk 0:01:45.9]}
14... dxe4 {[%clk 0:02:34.4]} 15. Nxe4 {[%clk 0:01:45.7]} 15... Nxe4 {[%clk
0:02:33.1]} 16. Bxe4 {[%clk 0:01:46.6]} 16... Bd6 {[%clk 0:02:31]} 17. Qd2
{[%clk 0:01:37.3]} 17... Bxf4 {[%clk 0:02:28.9]} 18. Qxf4 {[%clk 0:01:36.8]}
18... Qb8 {[%clk 0:02:26.5]} 19. Qh4 {[%clk 0:01:29.3]} 19... Ne7 {[%clk
0:02:24.5]} 20. Rfe1 {[%clk 0:01:25.7]} 20... Bxe4 {[%clk 0:02:22.6]} 21. Rxe4
{[%clk 0:01:24.7]} 21... Ng6 {[%clk 0:02:22.5]} 22. Qg3 {[%clk 0:01:17.3]} 22...
Qxg3 {[%clk 0:02:20.9]} 23. hxg3 {[%clk 0:01:17.9]} 23... a5 {[%clk 0:02:21.5]}
24. Rae1 {[%clk 0:01:02.7]} 24... axb4 {[%clk 0:02:20.5]} 25. axb4 {[%clk
0:01:03.2]} 25... Ra3 {[%clk 0:02:20.5]} 26. R1e3 {[%clk 0:01:03]} 26... Ne7
{[%clk 0:02:19.3]} 27. Ne5 {[%clk 0:01:00.6]} 27... f5 {[%clk 0:02:16.7]} 28.
Rh4 {[%clk 0:00:54.1]} 28... Nd5 {[%clk 0:02:16.6]} 29. Re1 {[%clk 0:00:50]}
29... Rxc3 {[%clk 0:02:15.7]} 30. Nd7 {[%clk 0:00:40.6]} 30... Re8 {[%clk
0:02:13.3]} 31. Nc5 {[%clk 0:00:40.2]} 31... Kf7 {[%clk 0:02:08.1]} 32. g4
{[%clk 0:00:38.2]} 32... f4 {[%clk 0:02:07]} 33. Ne4 {[%clk 0:00:31.9]} 33...
Rd8 {[%clk 0:01:57.1]} 34. Nxc3 {[%clk 0:00:31.1]} 34... Nxc3 {[%clk 0:01:58]}
35. Rh3 {[%clk 0:00:26.5]} 35... Na2 {[%clk 0:01:52.3]} 36. Ra3 {[%clk
0:00:26.1]} 36... Nxb4 {[%clk 0:01:52]} 37. Rb1 {[%clk 0:00:25.9]} 37... Nc2
{[%clk 0:01:39.7]} 38. Ra7+ {[%clk 0:00:25.1]} 38... Kf6 {[%clk 0:01:39.6]} 39.
Rxb5 {[%clk 0:00:25.4]} 39... Nxd4 {[%clk 0:01:39.2]} 40. Rbb7 {[%clk
0:00:25.2]} 40... c3 {[%clk 0:01:38.8]} 41. Rf7+ {[%clk 0:00:19.7]} 41... Ke5
{[%clk 0:01:38]} 42. Rac7 {[%clk 0:00:19.5]} 42... c2 {[%clk 0:01:35.9]} 43. Kh2
{[%clk 0:00:19.4]} 43... g5 {[%clk 0:01:33.1]} 44. Rh7 {[%clk 0:00:18.9]} 44...
Rb8 {[%clk 0:01:29.6]} 45. Rxh6 {[%clk 0:00:18.6]} 45... Rb1 {[%clk 0:01:28.6]}
46. Rg6 {[%clk 0:00:17.9]} 46... c1=Q {[%clk 0:01:26.6]} 47. Rxc1 {[%clk
0:00:18]} 47... Rxc1 {[%clk 0:01:27.5]} 48. Rxg5+ {[%clk 0:00:18.4]} 48... Kf6
{[%clk 0:01:22]} 49. Rh5 {[%clk 0:00:17.4]} 49... Rc2 {[%clk 0:01:21.5]} 50. Kg1
{[%clk 0:00:16.9]} 50... Rc1+ {[%clk 0:01:15.2]} 51. Kh2 {[%clk 0:00:16.8]}
51... Rf1 {[%clk 0:01:15]} 52. f3 {[%clk 0:00:16.4]} 52... Ne2 {[%clk
0:01:14.1]} 53. g5+ {[%clk 0:00:16]} 53... Kg6 {[%clk 0:01:11.5]} 54. Rh4 {[%clk
0:00:15.7]} 54... e5 {[%clk 0:01:08.7]} 55. Rg4 {[%clk 0:00:15.5]} 55... Ng3
{[%clk 0:01:08.1]} 56. Rxg3 {[%clk 0:00:15.8]} 56... fxg3+ {[%clk 0:01:08.6]}
57. Kxg3 {[%clk 0:00:16.5]} 57... Kxg5 {[%clk 0:01:09]} 0-1

[Event "*** Titled Tuesday Blitz"]
[Site "Chess.com"]
[Date "2020.03.03"]
[Round "2"]
[White "JSPrepz"]
[Black "INLOVEWITHF"]
[Result "1/2-1/2"]
[WhiteElo "2742"]
[BlackElo "2428"]
[TimeControl "180+1"]
[EndTime "13:19:45 PST"]
[Termination "Game drawn by repetition"]

1. e4 {[%clk 0:03:00.7]} 1... e5 {[%clk 0:02:57.7]} 2. Nf3 {[%clk 0:02:59.6]}
2... Nc6 {[%clk 0:02:56.8]} 3. Bb5 {[%clk 0:02:57.3]} 3... a6 {[%clk 0:02:56.2]}
4. Ba4 {[%clk 0:02:54.3]} 4... d6 {[%clk 0:02:55.8]} 5. O-O {[%clk 0:02:48.6]}
5... Bg4 {[%clk 0:02:55.1]} 6. h3 {[%clk 0:02:44.1]} 6... h5 {[%clk 0:02:54.2]}
7. Bxc6+ {[%clk 0:02:33.1]} 7... bxc6 {[%clk 0:02:54]} 8. d4 {[%clk 0:02:33]}
8... Bxf3 {[%clk 0:02:53.4]} 9. Qxf3 {[%clk 0:02:31.2]} 9... exd4 {[%clk
0:02:53.8]} 10. c3 {[%clk 0:02:31]} 10... dxc3 {[%clk 0:02:40.7]} 11. Nxc3
{[%clk 0:02:29.6]} 11... Ne7 {[%clk 0:02:38.9]} 12. Rd1 {[%clk 0:02:21.2]} 12...
Ng6 {[%clk 0:02:37.3]} 13. Bf4 {[%clk 0:01:52.5]} 13... Qf6 {[%clk 0:02:34.1]}
14. e5 {[%clk 0:01:48.4]} 14... dxe5 {[%clk 0:02:31.5]} 15. Qd3 {[%clk
0:01:12.4]} 15... Bd6 {[%clk 0:02:29.6]} 16. Be3 {[%clk 0:01:08.8]} 16... O-O
{[%clk 0:02:25.5]} 17. Qc4 {[%clk 0:01:07.1]} 17... Nf4 {[%clk 0:02:18.3]} 18.
Qxc6 {[%clk 0:01:03.4]} 18... Qg6 {[%clk 0:02:14.6]} 19. Bxf4 {[%clk 0:01:02.7]}
19... exf4 {[%clk 0:02:15.5]} 20. Ne4 {[%clk 0:01:00.1]} 20... f3 {[%clk
0:02:08.9]} 21. g3 {[%clk 0:00:58.8]} 21... h4 {[%clk 0:02:01.3]} 22. Nxd6
{[%clk 0:00:53.3]} 22... hxg3 {[%clk 0:01:59.8]} 23. Qxf3 {[%clk 0:00:45.2]}
23... gxf2+ {[%clk 0:01:58.4]} 24. Kxf2 {[%clk 0:00:45]} 24... cxd6 {[%clk
0:01:59.2]} 25. Rg1 {[%clk 0:00:44.3]} 25... Qc2+ {[%clk 0:01:58.1]} 26. Kg3
{[%clk 0:00:44.4]} 26... Qxb2 {[%clk 0:01:54.7]} 27. Raf1 {[%clk 0:00:41.4]}
27... Rac8 {[%clk 0:01:51.4]} 28. Qg4 {[%clk 0:00:32.1]} 28... Qe5+ {[%clk
0:01:48.4]} 29. Kh4 {[%clk 0:00:29.6]} 29... f5 {[%clk 0:01:41]} 30. Qg5 {[%clk
0:00:26.7]} 30... Rc4+ {[%clk 0:01:37.8]} 31. Kh5 {[%clk 0:00:25.9]} 31... Qe8+
{[%clk 0:01:21]} 32. Qg6 {[%clk 0:00:26.1]} 32... Qe7 {[%clk 0:01:21.4]} 33. Qg5
{[%clk 0:00:12.6]} 33... Qxg5+ {[%clk 0:01:12.7]} 34. Kxg5 {[%clk 0:00:12.6]}
34... f4 {[%clk 0:01:12.6]} 35. Rd1 {[%clk 0:00:12.1]} 35... f3 {[%clk
0:01:12.1]} 36. Rxd6 {[%clk 0:00:11.5]} 36... f2 {[%clk 0:01:11.9]} 37. Rf1
{[%clk 0:00:12.4]} 37... Re4 {[%clk 0:01:09.6]} 38. Rd2 {[%clk 0:00:12.3]} 38...
Re3 {[%clk 0:01:07.1]} 39. Rdxf2 {[%clk 0:00:11.9]} 39... Rxf2 {[%clk
0:01:06.2]} 40. Rxf2 {[%clk 0:00:12.4]} 40... Rxh3 {[%clk 0:01:06.8]} 41. Rb2
{[%clk 0:00:12.9]} 41... Ra3 {[%clk 0:01:02.8]} 42. Kg6 {[%clk 0:00:13.5]} 42...
Rg3+ {[%clk 0:01:02.3]} 43. Kf5 {[%clk 0:00:14]} 43... Ra3 {[%clk 0:01:01.7]}
44. Kg6 {[%clk 0:00:14.4]} 44... Rg3+ {[%clk 0:01:00.9]} 45. Kf5 {[%clk
0:00:15]} 45... Ra3 {[%clk 0:00:59.9]} 46. Kg6 {[%clk 0:00:15.5]} 1/2-1/2

[Event "*** Titled Tuesday Blitz"]
[Site "Chess.com"]
[Date "2020.03.03"]
[Round "2"]
[White "deBaller"]
[Black "Amirreza_p"]
[Result "0-1"]
[WhiteElo "2352"]
[BlackElo "2792"]
[TimeControl "180+1"]
[EndTime "13:19:46 PST"]
[Termination "Amirreza_p won on time"]

1. e4 {[%clk 0:03:00.9]} 1... e6 {[%clk 0:02:58.8]} 2. d4 {[%clk 0:03:00.2]}
2... d5 {[%clk 0:02:57.5]} 3. Nd2 {[%clk 0:02:58.3]} 3... c5 {[%clk 0:02:52.5]}
4. exd5 {[%clk 0:02:58.2]} 4... Qxd5 {[%clk 0:02:48.9]} 5. Ngf3 {[%clk
0:02:57.4]} 5... cxd4 {[%clk 0:02:43]} 6. Bc4 {[%clk 0:02:57.1]} 6... Qd7 {[%clk
0:02:42.2]} 7. O-O {[%clk 0:02:55.6]} 7... Nc6 {[%clk 0:02:42.4]} 8. Nb3 {[%clk
0:02:55.3]} 8... a6 {[%clk 0:02:43]} 9. Nbxd4 {[%clk 0:02:54.9]} 9... Nxd4
{[%clk 0:02:42.7]} 10. Qxd4 {[%clk 0:02:54.9]} 10... Qxd4 {[%clk 0:02:39]} 11.
Nxd4 {[%clk 0:02:55.8]} 11... Bd7 {[%clk 0:02:39.8]} 12. Bf4 {[%clk 0:02:47]}
12... O-O-O {[%clk 0:02:38.2]} 13. Rad1 {[%clk 0:02:42.6]} 13... Nf6 {[%clk
0:02:35.2]} 14. Rfe1 {[%clk 0:02:41.6]} 14... Bc5 {[%clk 0:02:33.3]} 15. c3
{[%clk 0:02:26.4]} 15... h6 {[%clk 0:02:16.2]} 16. h3 {[%clk 0:02:14.1]} 16...
Ba4 {[%clk 0:02:14.9]} 17. Nb3 {[%clk 0:01:54.7]} 17... Ba7 {[%clk 0:01:53.8]}
18. Be5 {[%clk 0:01:53.5]} 18... Rxd1 {[%clk 0:01:43.9]} 19. Rxd1 {[%clk
0:01:50.6]} 19... Rd8 {[%clk 0:01:44.5]} 20. Rxd8+ {[%clk 0:01:43.2]} 20... Kxd8
{[%clk 0:01:39.1]} 21. Nd4 {[%clk 0:01:32.3]} 21... Ne8 {[%clk 0:01:34.9]} 22.
Kf1 {[%clk 0:01:27.3]} 22... Ke7 {[%clk 0:01:34]} 23. Ke2 {[%clk 0:01:23]} 23...
f6 {[%clk 0:01:32.9]} 24. Bf4 {[%clk 0:01:18.2]} 24... Bxd4 {[%clk 0:01:27.1]}
25. cxd4 {[%clk 0:01:15.8]} 25... Bb5 {[%clk 0:01:26.6]} 26. b3 {[%clk
0:01:08.5]} 26... g5 {[%clk 0:01:20.5]} 27. Bb8 {[%clk 0:00:54.1]} 27... Ng7
{[%clk 0:01:17.3]} 28. Kd3 {[%clk 0:00:51.1]} 28... Bc6 {[%clk 0:01:13.6]} 29.
f3 {[%clk 0:00:26.1]} 29... b5 {[%clk 0:01:11.7]} 30. Ba7 {[%clk 0:00:23.5]}
30... bxc4+ {[%clk 0:01:09.3]} 31. bxc4 {[%clk 0:00:24.4]} 31... Kd7 {[%clk
0:01:09.4]} 32. Bc5 {[%clk 0:00:24.1]} 32... Nf5 {[%clk 0:01:08.6]} 33. g4
{[%clk 0:00:20.8]} 33... Nh4 {[%clk 0:01:06.8]} 34. Bf8 {[%clk 0:00:20.6]} 34...
Nxf3 {[%clk 0:01:06.1]} 35. Bxh6 {[%clk 0:00:20.6]} 35... Ng1 {[%clk 0:01:06.5]}
36. Ke3 {[%clk 0:00:10.4]} 36... Ke7 {[%clk 0:01:04]} 37. h4 {[%clk 0:00:05.3]}
37... gxh4 {[%clk 0:01:03.2]} 38. Bf4 {[%clk 0:00:05]} 38... Nh3 {[%clk
0:01:02]} 39. Bh2 {[%clk 0:00:03.7]} 39... Ng5 {[%clk 0:01:01.5]} 0-1

[Event "*** Titled Tuesday Blitz"]
[Site "Chess.com"]
[Date "2020.03.03"]
[Round "2"]
[White "WiktoriaPOL"]
[Black "RaphCamora"]
[Result "0-1"]
[WhiteElo "2174"]
[BlackElo "2447"]
[TimeControl "180+1"]
[EndTime "13:19:46 PST"]
[Termination "RaphCamora won on time"]

1. c4 {[%clk 0:03:00.9]} 1... e6 {[%clk 0:02:58.3]} 2. Nc3 {[%clk 0:03:00.6]}
2... d5 {[%clk 0:02:56.5]} 3. d4 {[%clk 0:02:59.9]} 3... c6 {[%clk 0:02:55.2]}
4. cxd5 {[%clk 0:02:48.5]} 4... exd5 {[%clk 0:02:54.8]} 5. Nf3 {[%clk
0:02:47.9]} 5... Bf5 {[%clk 0:02:51.9]} 6. Bg5 {[%clk 0:02:33.3]} 6... Qb6
{[%clk 0:02:48]} 7. Qc1 {[%clk 0:02:31]} 7... h6 {[%clk 0:02:46.2]} 8. Bf4
{[%clk 0:02:28.5]} 8... Nf6 {[%clk 0:02:45.4]} 9. e3 {[%clk 0:02:25.9]} 9... Be7
{[%clk 0:02:43.4]} 10. Be2 {[%clk 0:02:25.1]} 10... O-O {[%clk 0:02:42.4]} 11.
O-O {[%clk 0:02:24.1]} 11... Nbd7 {[%clk 0:02:43]} 12. a3 {[%clk 0:02:23.1]}
12... a5 {[%clk 0:02:41.7]} 13. Nh4 {[%clk 0:02:16.2]} 13... Bh7 {[%clk
0:02:40.3]} 14. Nf3 {[%clk 0:02:08.3]} 14... Ne4 {[%clk 0:02:35.2]} 15. Nxe4
{[%clk 0:02:07]} 15... Bxe4 {[%clk 0:02:32.1]} 16. Nd2 {[%clk 0:02:06.6]} 16...
Bg6 {[%clk 0:02:30.9]} 17. Qc3 {[%clk 0:02:00.9]} 17... a4 {[%clk 0:02:29]} 18.
Bd3 {[%clk 0:01:51]} 18... Bxd3 {[%clk 0:02:22.2]} 19. Qxd3 {[%clk 0:01:50.8]}
19... Ra5 {[%clk 0:02:20]} 20. b4 {[%clk 0:01:46.3]} 20... axb3 {[%clk
0:02:19.2]} 21. a4 {[%clk 0:01:10]} 21... Rfa8 {[%clk 0:02:13.4]} 22. Rab1
{[%clk 0:00:47.5]} 22... b2 {[%clk 0:02:07.8]} 23. Qc2 {[%clk 0:00:44.5]} 23...
Rxa4 {[%clk 0:02:07.7]} 24. Rxb2 {[%clk 0:00:44.7]} 24... Qa6 {[%clk 0:02:02.4]}
25. Rfb1 {[%clk 0:00:43.6]} 25... b5 {[%clk 0:01:52.9]} 26. Rc1 {[%clk
0:00:42.5]} 26... Ra1 {[%clk 0:01:52.5]} 27. Nb1 {[%clk 0:00:37.5]} 27... Ba3
{[%clk 0:01:43.5]} 28. Nxa3 {[%clk 0:00:36.1]} 28... Rxc1+ {[%clk 0:01:43]} 29.
Qxc1 {[%clk 0:00:36.6]} 29... Qxa3 {[%clk 0:01:43.6]} 30. Rc2 {[%clk 0:00:34.1]}
30... Qxc1+ {[%clk 0:01:39.4]} 31. Rxc1 {[%clk 0:00:35]} 31... Nb6 {[%clk
0:01:39]} 32. g3 {[%clk 0:00:26.8]} 32... Nc4 {[%clk 0:01:39]} 33. Kf1 {[%clk
0:00:23.3]} 33... Ra2 {[%clk 0:01:37.2]} 34. Ke1 {[%clk 0:00:16.9]} 34... g5
{[%clk 0:01:36.2]} 35. Bc7 {[%clk 0:00:16]} 35... Kg7 {[%clk 0:01:34.2]} 36.
Be5+ {[%clk 0:00:15.1]} 36... Kg6 {[%clk 0:01:34.4]} 37. f4 {[%clk 0:00:14.7]}
37... Kf5 {[%clk 0:01:33.8]} 38. fxg5 {[%clk 0:00:13.8]} 38... hxg5 {[%clk
0:01:33.7]} 39. Rc3 {[%clk 0:00:11.2]} 39... Ke4 {[%clk 0:01:33]} 40. g4 {[%clk
0:00:09]} 40... Kf3 {[%clk 0:01:08.6]} 41. Kd1 {[%clk 0:00:05.2]} 41... Nxe3+
{[%clk 0:01:08.5]} 42. Kc1 {[%clk 0:00:04]} 42... b4 {[%clk 0:01:05.7]} 43. Rb3
{[%clk 0:00:02.6]} 43... Rc2+ {[%clk 0:00:56.4]} 44. Kb1 {[%clk 0:00:02.5]}
44... Rc3 {[%clk 0:00:57.3]} 45. Rxb4 {[%clk 0:00:01.6]} 45... Nxg4 {[%clk
0:00:57.9]} 0-1

[Event "*** Titled Tuesday Blitz"]
[Site "Chess.com"]
[Date "2020.03.03"]
[Round "2"]
[White "dusanacns"]
[Black "Aleksey_Sorokin"]
[Result "0-1"]
[WhiteElo "2606"]
[BlackElo "2855"]
[TimeControl "180+1"]
[EndTime "13:19:54 PST"]
[Termination "Aleksey_Sorokin won on time"]

1. e4 {[%clk 0:03:00.9]} 1... e5 {[%clk 0:02:59.6]} 2. Nf3 {[%clk 0:02:59.5]}
2... Nc6 {[%clk 0:02:59.9]} 3. Bc4 {[%clk 0:03:00]} 3... Bc5 {[%clk 0:02:59.9]}
4. c3 {[%clk 0:03:00]} 4... Nf6 {[%clk 0:03:00.1]} 5. d3 {[%clk 0:03:00.5]} 5...
d6 {[%clk 0:02:58.7]} 6. h3 {[%clk 0:02:59.5]} 6... a6 {[%clk 0:02:57.5]} 7. Bb3
{[%clk 0:02:59.1]} 7... Ba7 {[%clk 0:02:56.7]} 8. Nbd2 {[%clk 0:02:59]} 8... O-O
{[%clk 0:02:55.4]} 9. Nf1 {[%clk 0:02:59]} 9... Be6 {[%clk 0:02:55.5]} 10. Ng3
{[%clk 0:02:51.8]} 10... h6 {[%clk 0:02:53.5]} 11. Nh2 {[%clk 0:02:47.5]} 11...
d5 {[%clk 0:02:52.6]} 12. Qf3 {[%clk 0:02:46.4]} 12... Qd6 {[%clk 0:02:19.4]}
13. Ng4 {[%clk 0:02:41]} 13... Nxg4 {[%clk 0:02:09.3]} 14. hxg4 {[%clk
0:02:41.9]} 14... dxe4 {[%clk 0:02:04.8]} 15. dxe4 {[%clk 0:02:08.2]} 15... Bxb3
{[%clk 0:01:20.3]} 16. axb3 {[%clk 0:02:09.1]} 16... Ne7 {[%clk 0:01:20.1]} 17.
g5 {[%clk 0:01:42.6]} 17... hxg5 {[%clk 0:01:19.8]} 18. Bxg5 {[%clk 0:01:40.4]}
18... f6 {[%clk 0:01:19.1]} 19. Bd2 {[%clk 0:01:22.9]} 19... Rad8 {[%clk
0:01:15.2]} 20. O-O-O {[%clk 0:01:22.3]} 20... Qe6 {[%clk 0:01:07.6]} 21. Kc2
{[%clk 0:01:19.5]} 21... Rd7 {[%clk 0:00:57.8]} 22. Qh5 {[%clk 0:00:43.9]} 22...
Rfd8 {[%clk 0:00:53.3]} 23. Nf5 {[%clk 0:00:38.3]} 23... Nxf5 {[%clk 0:00:46]}
24. exf5 {[%clk 0:00:38.6]} 24... Qd5 {[%clk 0:00:23.2]} 25. Qh7+ {[%clk
0:00:33]} 25... Kf7 {[%clk 0:00:19.6]} 26. Qg6+ {[%clk 0:00:17.7]} 26... Kg8
{[%clk 0:00:19.6]} 27. Qh7+ {[%clk 0:00:08]} 27... Kf8 {[%clk 0:00:19.4]} 28.
Qh8+ {[%clk 0:00:07.4]} 28... Qg8 {[%clk 0:00:19.4]} 29. Qh5 {[%clk 0:00:04.2]}
29... Bxf2 {[%clk 0:00:18.2]} 30. Qf3 {[%clk 0:00:03.8]} 30... Bb6 {[%clk
0:00:14.8]} 31. Qxb7 {[%clk 0:00:04]} 31... Qd5 {[%clk 0:00:15.3]} 32. Rh8+
{[%clk 0:00:03.7]} 32... Kf7 {[%clk 0:00:15.6]} 0-1

[Event "*** Titled Tuesday Blitz"]
[Site "Chess.com"]
[Date "2020.03.03"]
[Round "2"]
[White "karwowskikacper"]
[Black "HashtagChess"]
[Result "1-0"]
[WhiteElo "2373"]
[BlackElo "1596"]
[TimeControl "180+1"]
[EndTime "13:20:00 PST"]
[Termination "karwowskikacper won by resignation"]

1. e4 {[%clk 0:03:00.9]} 1... e6 {[%clk 0:02:59.6]} 2. d3 {[%clk 0:02:59.5]}
2... c5 {[%clk 0:02:58]} 3. Nd2 {[%clk 0:02:59.8]} 3... Nc6 {[%clk 0:02:57.6]}
4. g3 {[%clk 0:02:59.3]} 4... g6 {[%clk 0:02:57.9]} 5. Bg2 {[%clk 0:02:58.2]}
5... Bg7 {[%clk 0:02:58.2]} 6. Ngf3 {[%clk 0:02:47.6]} 6... Nge7 {[%clk
0:02:58.2]} 7. O-O {[%clk 0:02:47.6]} 7... O-O {[%clk 0:02:57.8]} 8. Re1 {[%clk
0:02:45.4]} 8... d6 {[%clk 0:02:58.2]} 9. c3 {[%clk 0:02:42.5]} 9... b5 {[%clk
0:02:58]} 10. h4 {[%clk 0:01:57.9]} 10... Rb8 {[%clk 0:02:53.2]} 11. Nf1 {[%clk
0:01:57.5]} 11... a5 {[%clk 0:02:51.8]} 12. Ne3 {[%clk 0:01:55.7]} 12... b4
{[%clk 0:02:45.3]} 13. c4 {[%clk 0:01:55.6]} 13... a4 {[%clk 0:02:40.9]} 14. Rb1
{[%clk 0:01:50]} 14... d5 {[%clk 0:02:29.1]} 15. cxd5 {[%clk 0:01:21.5]} 15...
exd5 {[%clk 0:02:30]} 16. exd5 {[%clk 0:01:22]} 16... Nd4 {[%clk 0:02:05.8]} 17.
Nxd4 {[%clk 0:01:13.3]} 17... Bxd4 {[%clk 0:02:06.7]} 18. d6 {[%clk 0:01:06.5]}
18... Nf5 {[%clk 0:02:02.3]} 19. Nxf5 {[%clk 0:01:02.2]} 19... Bxf5 {[%clk
0:02:03.2]} 20. Bf4 {[%clk 0:01:02.1]} 20... Rb6 {[%clk 0:01:41.9]} 21. Qe2
{[%clk 0:00:26.8]} 21... c4 {[%clk 0:01:30]} 22. Be4 {[%clk 0:00:20.2]} 22...
cxd3 {[%clk 0:01:13.1]} 23. Bxd3 {[%clk 0:00:21.1]} 23... Be6 {[%clk 0:01:10.7]}
24. Bc4 {[%clk 0:00:18.2]} 24... Re8 {[%clk 0:01:00.5]} 25. Bxe6 {[%clk
0:00:17.2]} 25... Rxe6 {[%clk 0:01:00.2]} 26. Qd2 {[%clk 0:00:17.4]} 26... Bc5
{[%clk 0:00:36.9]} 27. Rxe6 {[%clk 0:00:16.7]} 27... fxe6 {[%clk 0:00:37.5]} 28.
Qe2 {[%clk 0:00:14.4]} 28... Qd7 {[%clk 0:00:33.4]} 29. Re1 {[%clk 0:00:07.7]}
29... Kf7 {[%clk 0:00:32.1]} 30. Qf3 {[%clk 0:00:06.5]} 30... Kg8 {[%clk
0:00:23.6]} 31. Qa8+ {[%clk 0:00:06.4]} 31... Kg7 {[%clk 0:00:22.6]} 32. Be5+
{[%clk 0:00:05.5]} 32... Kh6 {[%clk 0:00:18.1]} 33. Qf8+ {[%clk 0:00:05.3]}
33... Kh5 {[%clk 0:00:18.6]} 34. Qf3+ {[%clk 0:00:05]} 34... Kh6 {[%clk
0:00:18.3]} 35. Qf4+ {[%clk 0:00:05.2]} 35... Kh5 {[%clk 0:00:16.3]} 36. g4+
{[%clk 0:00:05.6]} 36... Kxh4 {[%clk 0:00:16.9]} 37. Bf6+ {[%clk 0:00:06.2]} 1-0